fUSD/lending_fUSD_20250219
["ID","MTS","AMOUNT","RATE_DAILY","PERIOD"]
[353728719,1739999433626,-500.0,0.00011241,2]
[353728721,1739999433636,-500.0,0.00011242,2]
[353728723,1739999433646,-500.0,0.00011242,2]
[353728725,1739999433655,-2500.0,0.00011306,2]
[353728727,1739999433665,-500.0,0.00011323,2]
[353728728,1739999433674,-500.0,0.00011323,2]
[353728730,1739999433684,-500.0,0.00011323,2]
[353728732,1739999433694,-548.97,0.00011323,2]
[353728734,1739999433703,-475.689387,0.00011323,2]
[353728737,1739999433713,-500.0,0.00011323,2]
[353728739,1739999433723,-500.0,0.00011323,2]
[353728741,1739999433733,-500.0,0.00011323,2]
[353728742,1739999433743,-614.84909,0.00011323,2]
[353728744,1739999433752,-500.0,0.00011323,2]
[353728746,1739999433762,-500.0,0.00011323,2]
[353728748,1739999433772,-500.0,0.00011323,2]
[353728750,1739999433782,-639.27,0.00011323,2]
[353728752,1739999433791,-616.88,0.00011323,2]
[353728754,1739999433801,-523.1,0.00011323,2]
[353728756,1739999433810,-500.0,0.00011323,2]
[353728758,1739999433820,-1730.74,0.00011323,2]
[353728760,1739999433830,-855.97,0.00011323,2]
[353728762,1739999433839,-500.0,0.00011323,2]
[353728764,1739999433848,-500.0,0.00011323,2]
[353728766,1739999433858,-500.0,0.00011323,2]
[353728768,1739999433867,-764.6,0.00011323,2]
[353728770,1739999433877,-717.1,0.00011323,2]
[353728772,1739999433887,-500.0,0.00011323,2]
[353728774,1739999433900,-999.41,0.00011323,2]
[353728776,1739999433910,-500.0,0.00011323,2]
[353728778,1739999433920,-569.05,0.00011323,2]
[353728780,1739999433930,-500.0,0.00011323,2]
[353728782,1739999433939,-501.99,0.00011323,2]
[353728784,1739999433949,-500.0,0.00011323,2]
[353728786,1739999433959,-500.0,0.00011323,2]
[353728788,1739999433970,-500.0,0.00011323,2]
[353728790,1739999433980,-500.0,0.00011323,2]
[353728792,1739999433990,-553.07,0.00011323,2]
[353728794,1739999433999,-500.0,0.00011323,2]
[353728796,1739999434008,-500.0,0.00011323,2]
[353728798,1739999434018,-500.0,0.00011323,2]
[353728800,1739999434027,-626.95,0.00011323,2]
[353728802,1739999434036,-500.0,0.00011323,2]
[353728804,1739999434046,-523.36,0.00011323,2]
[353728806,1739999434055,-526.47,0.00011323,2]
[353728808,1739999434065,-500.0,0.00011323,2]
[353728810,1739999434074,-500.0,0.00011323,2]
[353728812,1739999434084,-500.0,0.00011323,2]
[353728814,1739999434093,-535.96,0.00011323,2]
[353728816,1739999434103,-500.0,0.00011323,2]
[353728818,1739999434113,-500.0,0.00011323,2]
[353728820,1739999434124,-500.0,0.00011323,2]
[353728822,1739999434134,-500.0,0.00011323,2]
[353728824,1739999434144,-500.0,0.00011323,2]
[353728825,1739999434154,-500.0,0.00011323,2]
[353728828,1739999434165,-500.0,0.00011323,2]
[353728830,1739999434175,-500.0,0.00011323,2]
[353728832,1739999434184,-500.0,0.00011323,2]
[353728833,1739999434194,-500.0,0.00011323,2]
[353728835,1739999434204,-555.96,0.00011323,2]
[353728837,1739999434218,-500.0,0.00011323,2]
[353728839,1739999434228,-500.0,0.00011323,2]
[353728841,1739999434242,-500.0,0.00011323,2]
[353728843,1739999434254,-533.6,0.00011323,2]
[353728845,1739999434265,-500.0,0.00011323,2]
[353728847,1739999434281,-500.0,0.00011323,2]
[353728849,1739999434299,-500.0,0.00011323,2]
[353728851,1739999434313,-500.0,0.00011323,2]
[353728853,1739999434323,-500.0,0.00011323,2]
[353728855,1739999434333,-500.0,0.00011323,2]
[353728857,1739999434344,-500.0,0.00011323,2]
[353728859,1739999434353,-597.22,0.00011323,2]
[353728861,1739999434363,-500.0,0.00011323,2]
[353728863,1739999434373,-500.0,0.00011323,2]
[353728865,1739999434383,-500.0,0.00011323,2]
[353728867,1739999434393,-375.88651735,0.00011324,2]
[353728869,1739999434402,-500.0,0.00011324,2]
[353728871,1739999434412,-500.0,0.00011324,2]
[353728873,1739999434422,-500.0,0.00011324,2]
[353728875,1739999434432,-500.0,0.00011324,2]
[353728877,1739999434441,-212.80040076,0.00011324,2]
[353728879,1739999434452,-274.19,0.00011324,2]
[353728881,1739999434461,-500.0,0.00011324,2]
[353728883,1739999434471,-500.0,0.00011324,2]
[353728885,1739999434480,-500.0,0.00011324,2]
[353728887,1739999434489,-673.38230493,0.00011341,2]
[353728889,1739999434499,-500.0,0.00011405,2]
[353728891,1739999434508,-500.0,0.00011406,2]
[353728893,1739999434518,-500.0,0.00011406,2]
[353728895,1739999434528,-500.0,0.00011406,2]
[353728897,1739999434538,-500.0,0.00011406,2]
[353728899,1739999434547,-500.0,0.00011406,2]
[353728901,1739999434557,-500.0,0.00011406,2]
[353728903,1739999434567,-398.58,0.00011406,2]
[353728905,1739999434576,-500.0,0.00011406,2]
[353728907,1739999434586,-500.0,0.00011406,2]
[353728909,1739999434595,-500.0,0.00011406,2]
[353728911,1739999434605,-548.97,0.00011406,2]
[353728913,1739999434615,-475.689387,0.00011406,2]
[353728915,1739999434624,-500.0,0.00011406,2]
[353728917,1739999434633,-614.84909,0.00011406,2]
[353728918,1739999434643,-500.0,0.00011406,2]
[353728920,1739999434653,-500.0,0.00011406,2]
[353728922,1739999434663,-500.0,0.00011406,2]
[353728924,1739999434673,-639.27,0.00011406,2]
[353728926,1739999434682,-616.88,0.00011406,2]
[353728928,1739999434691,-523.1,0.00011406,2]
[353728930,1739999434700,-500.0,0.00011406,2]
[353728932,1739999434710,-1730.74,0.00011406,2]
[353728934,1739999434719,-855.97,0.00011406,2]
[353728936,1739999434729,-500.0,0.00011406,2]
[353728938,1739999434738,-500.0,0.00011406,2]
[353728940,1739999434748,-500.0,0.00011406,2]
[353728942,1739999434757,-764.6,0.00011406,2]
[353728944,1739999434767,-717.1,0.00011406,2]
[353728946,1739999434777,-500.0,0.00011406,2]
[353728948,1739999434786,-999.41,0.00011406,2]
[353728950,1739999434796,-500.0,0.00011406,2]
[353728952,1739999434805,-569.05,0.00011406,2]
[353728954,1739999434814,-501.99,0.00011406,2]
[353728956,1739999434824,-177.45,0.00011406,2]
[353728958,1739999434835,-500.0,0.00011406,2]
[353728960,1739999434844,-500.0,0.00011406,2]
[353728962,1739999434854,-553.07,0.00011406,2]
[353728964,1739999434863,-500.0,0.00011406,2]
[353728966,1739999434873,-500.0,0.00011406,2]
[353728968,1739999434882,-500.0,0.00011406,2]
[353728969,1739999434892,-626.95,0.00011406,2]
[353728971,1739999434901,-500.0,0.00011406,2]
[353728973,1739999434911,-523.36,0.00011406,2]
[353728975,1739999434920,-526.47,0.00011406,2]
[353728977,1739999434930,-500.0,0.00011406,2]
[353728979,1739999434939,-500.0,0.00011406,2]
[353728981,1739999434949,-500.0,0.00011406,2]
[353728983,1739999434958,-535.96,0.00011406,2]
[353728985,1739999434967,-500.0,0.00011406,2]
[353728987,1739999434977,-500.0,0.00011406,2]
[353728989,1739999434987,-500.0,0.00011406,2]
[353728991,1739999434996,-500.0,0.00011406,2]
[353728993,1739999435006,-500.0,0.00011406,2]
[353728995,1739999435015,-500.0,0.00011406,2]
[353728997,1739999435025,-500.0,0.00011406,2]
[353728999,1739999435035,-555.96,0.00011406,2]
[353729001,1739999435045,-500.0,0.00011406,2]
[353729003,1739999435055,-500.0,0.00011406,2]
[353729005,1739999435065,-533.6,0.00011406,2]
[353729007,1739999435074,-500.0,0.00011406,2]
[353729009,1739999435083,-500.0,0.00011406,2]
[353729011,1739999435093,-500.0,0.00011406,2]
[353729013,1739999435102,-500.0,0.00011406,2]
[353729014,1739999435111,-500.0,0.00011406,2]
[353729015,1739999435120,-597.22,0.00011406,2]
[353729016,1739999435129,-500.0,0.00011406,2]
[353729017,1739999435138,-500.0,0.00011406,2]
[353729018,1739999435148,-1000.0,0.00011433,2]
[353729019,1739999435157,-495.89,0.00011488,2]
[353729020,1739999435167,-465.45281682,0.00011488,2]
[353729021,1739999435175,-500.0,0.00011488,2]
[353729022,1739999435184,-500.0,0.00011488,2]
[353729023,1739999435194,-500.0,0.00011488,2]
[353729024,1739999435203,-500.0,0.00011488,2]
[353729025,1739999435212,-507.866296,0.00011488,2]
[353729026,1739999435221,-500.0,0.00011488,2]
[353729027,1739999435230,-500.0,0.00011488,2]
[353729028,1739999435239,-548.97,0.00011488,2]
[353729030,1739999435249,-475.689387,0.00011488,2]
[353729031,1739999435259,-500.0,0.00011488,2]
[353729033,1739999435272,-614.84909,0.00011488,2]
[353729035,1739999435281,-500.0,0.00011488,2]
[353729037,1739999435290,-500.0,0.00011488,2]
[353729039,1739999435300,-500.0,0.00011488,2]
[353729041,1739999435310,-639.27,0.00011488,2]
[353729043,1739999435320,-616.88,0.00011488,2]
[353729045,1739999435330,-523.1,0.00011488,2]
[353729047,1739999435340,-500.0,0.00011488,2]
[353729049,1739999435350,-1730.74,0.00011488,2]
[353729051,1739999435361,-855.97,0.00011488,2]
[353729053,1739999435370,-500.0,0.00011488,2]
[353729054,1739999435379,-500.0,0.00011488,2]
[353729056,1739999435391,-500.0,0.00011488,2]
[353729058,1739999435401,-764.6,0.00011488,2]
[353729060,1739999435411,-717.1,0.00011488,2]
[353729062,1739999435421,-500.0,0.00011488,2]
[353729064,1739999435431,-999.41,0.00011488,2]
[353729066,1739999435441,-500.0,0.00011488,2]
[353729068,1739999435450,-569.05,0.00011488,2]
[353729070,1739999435461,-501.99,0.00011488,2]
[353729072,1739999435471,-500.0,0.00011488,2]
[353729075,1739999435481,-500.0,0.00011488,2]
[353729076,1739999435490,-553.07,0.00011488,2]
[353729078,1739999435500,-500.0,0.00011488,2]
[353729080,1739999435509,-500.0,0.00011488,2]
[353729082,1739999435519,-420.62,0.00011488,2]
[353729084,1739999435528,-626.95,0.00011488,2]
[353729086,1739999435537,-500.0,0.00011488,2]
[353729088,1739999435547,-523.36,0.00011488,2]
[353729090,1739999435556,-526.47,0.00011488,2]
[353729092,1739999435566,-500.0,0.00011488,2]
[353729094,1739999435576,-500.0,0.00011488,2]
[353729096,1739999435586,-500.0,0.00011488,2]
[353729098,1739999435595,-535.96,0.00011488,2]
[353729100,1739999435604,-500.0,0.00011488,2]
[353729102,1739999435614,-500.0,0.00011488,2]
[353729104,1739999435623,-500.0,0.00011488,2]
[353729106,1739999435633,-458.88549743,0.00011488,2]
[353729108,1739999435642,-500.0,0.00011488,2]
[353729110,1739999435651,-555.96,0.00011488,2]
[353729112,1739999435661,-500.0,0.00011488,2]
[353729114,1739999435670,-500.0,0.00011488,2]
[353729116,1739999435680,-533.6,0.00011488,2]
[353729118,1739999435690,-500.0,0.00011488,2]
[353729120,1739999435700,-500.0,0.00011488,2]
[353729122,1739999435709,-500.0,0.00011488,2]
[353729124,1739999435718,-500.0,0.00011488,2]
[353729126,1739999435727,-597.22,0.00011488,2]
[353729128,1739999435736,-500.0,0.00011488,2]
[353729130,1739999435745,-500.0,0.00011488,2]
[353729131,1739999435755,-500.0,0.0001157,2]
[353729133,1739999435764,-475.19,0.0001157,2]
[353729136,1739999435774,-500.0,0.0001157,2]
[353729137,1739999435783,-232.29,0.0001157,2]
[353729139,1739999435793,-500.0,0.0001157,2]
[353729141,1739999435802,-500.0,0.0001157,2]
[353729143,1739999435811,-548.97,0.0001157,2]
[353729145,1739999435820,-475.689387,0.0001157,2]
[353729147,1739999435829,-500.0,0.0001157,2]
[353729149,1739999435839,-614.84909,0.0001157,2]
[353729151,1739999435848,-500.0,0.0001157,2]
[353729153,1739999435858,-500.0,0.0001157,2]
[353729155,1739999435867,-500.0,0.0001157,2]
[353729157,1739999435877,-639.27,0.0001157,2]
[353729159,1739999435886,-616.88,0.0001157,2]
[353729161,1739999435896,-523.1,0.0001157,2]
[353729163,1739999435905,-500.0,0.0001157,2]
[353729165,1739999435914,-1730.74,0.0001157,2]
[353729167,1739999435923,-855.97,0.0001157,2]
[353729169,1739999435933,-500.0,0.0001157,2]
[353729171,1739999435943,-500.0,0.0001157,2]
[353729173,1739999435952,-500.0,0.0001157,2]
[353729175,1739999435962,-764.6,0.0001157,2]
[353729177,1739999435972,-717.1,0.0001157,2]
[353729179,1739999435981,-500.0,0.0001157,2]
[353729181,1739999435991,-999.41,0.0001157,2]
[353729183,1739999436001,-500.0,0.0001157,2]
[353729185,1739999436010,-569.05,0.0001157,2]
[353729187,1739999436019,-501.99,0.0001157,2]
[353729189,1739999436029,-500.0,0.0001157,2]
[353729191,1739999436038,-500.0,0.0001157,2]
[353729193,1739999436048,-553.07,0.0001157,2]
[353729195,1739999436057,-500.0,0.0001157,2]
[353729197,1739999436067,-500.0,0.0001157,2]
[353729199,1739999436076,-626.95,0.0001157,2]
[353729200,1739999436085,-500.0,0.0001157,2]
[353729203,1739999436095,-523.36,0.0001157,2]
[353729204,1739999436104,-526.47,0.0001157,2]
[353729206,1739999436114,-500.0,0.0001157,2]
[353729208,1739999436123,-500.0,0.0001157,2]
[353729210,1739999436132,-500.0,0.0001157,2]
[353729212,1739999436142,-535.96,0.0001157,2]
[353729214,1739999436153,-500.0,0.0001157,2]
[353729217,1739999436163,-500.0,0.0001157,2]
[353729218,1739999436172,-500.0,0.0001157,2]
[353729220,1739999436182,-500.0,0.0001157,2]
[353729222,1739999436191,-555.96,0.0001157,2]
[353729223,1739999436200,-500.0,0.0001157,2]
[353729224,1739999436209,-500.0,0.0001157,2]
[353729225,1739999436218,-533.6,0.0001157,2]
[353729226,1739999436227,-500.0,0.0001157,2]
[353729227,1739999436236,-500.0,0.0001157,2]
[353729228,1739999436245,-500.0,0.0001157,2]
[353729229,1739999436254,-500.0,0.0001157,2]
[353729230,1739999436263,-597.22,0.0001157,2]
[353729231,1739999436275,-500.0,0.0001157,2]
[353729232,1739999436284,-500.0,0.0001157,2]
[353729233,1739999436293,-673.38230493,0.00011624,2]
[353729234,1739999436302,-500.0,0.00011652,2]
[353729235,1739999436312,-500.0,0.00011652,2]
[353729236,1739999436321,-500.0,0.00011652,2]
[353729237,1739999436331,-500.0,0.00011652,2]
[353729238,1739999436341,-174.5,0.00011652,2]
[353729239,1739999436351,-548.97,0.00011652,2]
[353729240,1739999436361,-475.689387,0.00011652,2]
[353729241,1739999436370,-500.0,0.00011652,2]
[353729242,1739999436380,-614.84909,0.00011652,2]
[353729243,1739999436390,-500.0,0.00011652,2]
[353729244,1739999436400,-500.0,0.00011652,2]
[353729245,1739999436410,-500.0,0.00011652,2]
[353729246,1739999436420,-639.27,0.00011652,2]
[353729247,1739999436429,-616.88,0.00011652,2]
[353729248,1739999436439,-523.1,0.00011652,2]
[353729249,1739999436448,-500.0,0.00011652,2]
[353729250,1739999436458,-1730.74,0.00011652,2]
[353729251,1739999436467,-855.97,0.00011652,2]
[353729252,1739999436476,-500.0,0.00011652,2]
[353729253,1739999436485,-500.0,0.00011652,2]
[353729254,1739999436494,-500.0,0.00011652,2]
[353729255,1739999436504,-764.6,0.00011652,2]
[353729256,1739999436513,-717.1,0.00011652,2]
[353729257,1739999436522,-500.0,0.00011652,2]
[353729258,1739999436531,-999.41,0.00011652,2]
[353729259,1739999436541,-500.0,0.00011652,2]
[353729260,1739999436550,-569.05,0.00011652,2]
[353729261,1739999436559,-501.99,0.00011652,2]
[353729262,1739999436570,-500.0,0.00011652,2]
[353729263,1739999436582,-500.0,0.00011652,2]
[353729264,1739999436592,-553.07,0.00011652,2]
[353729265,1739999436601,-500.0,0.00011652,2]
[353729266,1739999436611,-500.0,0.00011652,2]
[353729267,1739999436620,-626.95,0.00011652,2]
[353729268,1739999436631,-500.0,0.00011652,2]
[353729269,1739999436643,-523.36,0.00011652,2]
[353729270,1739999436652,-526.47,0.00011652,2]
[353729271,1739999436661,-500.0,0.00011652,2]
[353729272,1739999436670,-500.0,0.00011652,2]
[353729273,1739999436680,-500.0,0.00011652,2]
[353729274,1739999436689,-535.96,0.00011652,2]
[353729275,1739999436698,-150.96017322,0.00011652,2]
[353729276,1739999436708,-500.0,0.00011652,2]
[353729277,1739999436718,-500.0,0.00011652,2]
[353729278,1739999436727,-500.0,0.00011652,2]
[353729279,1739999436736,-555.96,0.00011652,2]
[353729280,1739999436746,-500.0,0.00011652,2]
[353729281,1739999436756,-500.0,0.00011652,2]
[353729282,1739999436766,-533.6,0.00011652,2]
[353729283,1739999436775,-500.0,0.00011652,2]
[353729284,1739999436785,-500.0,0.00011652,2]
[353729285,1739999436795,-500.0,0.00011652,2]
[353729286,1739999436804,-500.0,0.00011652,2]
[353729287,1739999436813,-597.22,0.00011652,2]
[353729288,1739999436822,-375.99499814,0.00011652,2]
[353729289,1739999436832,-500.0,0.00011652,2]
[353729290,1739999436841,-500.0,0.00011734,2]
[353729291,1739999436851,-548.97,0.00011734,2]
[353729292,1739999436860,-475.689387,0.00011734,2]
[353729293,1739999436870,-500.0,0.00011734,2]
[353729294,1739999436879,-614.84909,0.00011734,2]
[353729295,1739999436889,-500.0,0.00011734,2]
[353729296,1739999436899,-500.0,0.00011734,2]
[353729297,1739999436908,-500.0,0.00011734,2]
[353729298,1739999436918,-639.27,0.00011734,2]
[353729299,1739999436928,-616.88,0.00011734,2]
[353729300,1739999436938,-523.1,0.00011734,2]
[353729301,1739999436947,-500.0,0.00011734,2]
[353729302,1739999436957,-1730.74,0.00011734,2]
[353729303,1739999436967,-855.97,0.00011734,2]
[353729304,1739999436977,-500.0,0.00011734,2]
[353729305,1739999436987,-500.0,0.00011734,2]
[353729306,1739999436999,-500.0,0.00011734,2]
[353729307,1739999437009,-764.6,0.00011734,2]
[353729308,1739999437018,-717.1,0.00011734,2]
[353729309,1739999437028,-500.0,0.00011734,2]
[353729310,1739999437037,-999.41,0.00011734,2]
[353729311,1739999437218,-500.0,0.00011734,2]
[353729312,1739999437228,-569.05,0.00011734,2]
[353729313,1739999437237,-501.99,0.00011734,2]
[353729314,1739999437247,-500.0,0.00011734,2]
[353729315,1739999437257,-500.0,0.00011734,2]
[353729316,1739999437267,-553.07,0.00011734,2]
[353729317,1739999437283,-500.0,0.00011734,2]
[353729318,1739999437293,-500.0,0.00011734,2]
[353729319,1739999437303,-626.95,0.00011734,2]
[353729320,1739999437313,-500.0,0.00011734,2]
[353729321,1739999437323,-523.36,0.00011734,2]
[353729322,1739999437333,-526.47,0.00011734,2]
[353729323,1739999437343,-500.0,0.00011734,2]
[353729324,1739999437353,-500.0,0.00011734,2]
[353729325,1739999437363,-500.0,0.00011734,2]
[353729326,1739999437373,-535.96,0.00011734,2]
[353729327,1739999437383,-526.04091567,0.00011734,2]
[353729328,1739999437393,-500.0,0.00011734,2]
[353729329,1739999437403,-500.0,0.00011734,2]
[353729330,1739999437413,-555.96,0.00011734,2]
[353729331,1739999437429,-500.0,0.00011734,2]
[353729332,1739999437438,-500.0,0.00011734,2]
[353729333,1739999437448,-533.6,0.00011734,2]
[353729334,1739999437458,-500.0,0.00011734,2]
[353729335,1739999437466,-500.0,0.00011734,2]
[353729336,1739999437474,-500.0,0.00011734,2]
[353729337,1739999437482,-500.0,0.00011734,2]
[353729338,1739999437490,-597.22,0.00011734,2]
[353729339,1739999437497,-475.84,0.00011734,2]
[353729340,1739999437505,-500.0,0.00011735,2]
[353729341,1739999437512,-500.0,0.00011735,2]
[353729342,1739999437519,-1200.0,0.0001178,2]
[353729343,1739999437529,-1200.0,0.0001178,2]
[353729344,1739999437539,-500.0,0.0001178,2]
[353729345,1739999437548,-320.54603554,0.00011798,2]
[353729346,1739999437558,-4991.42764249,0.00011798,2]
[353729347,1739999437568,-500.0,0.00011816,2]
[353729348,1739999437577,-548.97,0.00011816,2]
[353729350,1739999437587,-475.689387,0.00011816,2]
[353729351,1739999437596,-500.0,0.00011816,2]
[353729353,1739999437607,-614.84909,0.00011816,2]
[353729355,1739999437616,-500.0,0.00011816,2]
[353729356,1739999437626,-500.0,0.00011816,2]
[353729357,1739999437636,-500.0,0.00011816,2]
[353729358,1739999437646,-639.27,0.00011816,2]
[353729359,1739999437656,-616.88,0.00011816,2]
[353729360,1739999437666,-523.1,0.00011816,2]
[353729361,1739999437675,-500.0,0.00011816,2]
[353729362,1739999437684,-1730.74,0.00011816,2]
[353729363,1739999437694,-855.97,0.00011816,2]
[353729364,1739999437704,-500.0,0.00011816,2]
[353729365,1739999437714,-500.0,0.00011816,2]
[353729366,1739999437723,-500.0,0.00011816,2]
[353729367,1739999437733,-764.6,0.00011816,2]
[353729368,1739999437742,-717.1,0.00011816,2]
[353729369,1739999437753,-500.0,0.00011816,2]
[353729370,1739999437762,-999.41,0.00011816,2]
[353729371,1739999437772,-500.0,0.00011816,2]
[353729372,1739999437782,-569.05,0.00011816,2]
[353729373,1739999437791,-501.99,0.00011816,2]
[353729374,1739999437801,-500.0,0.00011816,2]
[353729375,1739999437811,-500.0,0.00011816,2]
[353729376,1739999437820,-553.07,0.00011816,2]
[353729377,1739999437830,-500.0,0.00011816,2]
[353729378,1739999437839,-500.0,0.00011816,2]
[353729379,1739999437849,-626.95,0.00011816,2]
[353729380,1739999437859,-500.0,0.00011816,2]
[353729381,1739999437869,-523.36,0.00011816,2]
[353729382,1739999437879,-526.47,0.00011816,2]
[353729383,1739999437889,-500.0,0.00011816,2]
[353729384,1739999437900,-500.0,0.00011816,2]
[353729385,1739999437910,-259.82964858,0.00011816,2]
[353729386,1739999437920,-535.96,0.00011816,2]
[353729387,1739999437929,-500.0,0.00011816,2]
[353729388,1739999437939,-500.0,0.00011816,2]
[353729389,1739999437949,-555.96,0.00011816,2]
[353729390,1739999437959,-500.0,0.00011816,2]
[353729391,1739999437969,-500.0,0.00011816,2]
[353729392,1739999437979,-533.6,0.00011816,2]
[353729393,1739999437989,-500.0,0.00011816,2]
[353729394,1739999437999,-500.0,0.00011816,2]
[353729395,1739999438008,-500.0,0.00011816,2]
[353729396,1739999438018,-500.0,0.00011816,2]
[353729397,1739999438028,-597.22,0.00011816,2]
[353729398,1739999438037,-500.0,0.00011817,2]
[353729399,1739999438048,-500.0,0.00011817,2]
[353729400,1739999438058,-500.0,0.00011898,2]
[353729401,1739999438069,-500.0,0.00011898,2]
[353729402,1739999438079,-500.0,0.00011898,2]
[353729403,1739999438089,-500.0,0.00011898,2]
[353729404,1739999438100,-500.0,0.00011898,2]
[353729406,1739999438110,-500.0,0.00011898,2]
[353729408,1739999438119,-500.0,0.00011898,2]
[353729410,1739999438129,-268.65837626,0.00011898,2]
[353729412,1739999438138,-500.0,0.00011898,2]
[353729413,1739999438148,-500.0,0.00011898,2]
[353729415,1739999438157,-616.58073283,0.00011898,2]
[353729417,1739999438167,-500.0,0.00011898,2]
[353729419,1739999438176,-500.0,0.00011898,2]
[353729421,1739999438186,-500.0,0.00011898,2]
[353729424,1739999438196,-500.0,0.00011898,2]
[353729425,1739999438206,-500.0,0.00011898,2]
[353729427,1739999438217,-500.0,0.00011898,2]
[353729430,1739999438226,-500.0,0.00011898,2]
[353729432,1739999438236,-500.0,0.00011898,2]
[353729434,1739999438246,-500.0,0.00011898,2]
[353729435,1739999438255,-500.0,0.00011898,2]
[353729438,1739999438267,-500.0,0.00011898,2]
[353729439,1739999438279,-500.0,0.00011898,2]
[353729441,1739999438289,-500.0,0.00011898,2]
[353729444,1739999438299,-500.0,0.00011898,2]
[353729445,1739999438309,-500.0,0.00011898,2]
[353729448,1739999438319,-500.0,0.00011898,2]
[353729450,1739999438328,-500.0,0.00011898,2]
[353729452,1739999438338,-500.0,0.00011898,2]
[353729454,1739999438348,-500.0,0.00011898,2]
[353729456,1739999438358,-500.0,0.00011898,2]
[353729458,1739999438368,-500.0,0.00011898,2]
[353729459,1739999438378,-500.0,0.00011898,2]
[353729460,1739999438388,-500.0,0.00011898,2]
[353729461,1739999438398,-500.0,0.00011898,2]
[353729463,1739999438408,-500.0,0.00011898,2]
[353729465,1739999438417,-500.0,0.00011898,2]
[353729467,1739999438426,-500.0,0.00011898,2]
[353729469,1739999438435,-502.52407061,0.00011898,2]
[353729471,1739999438445,-500.0,0.00011898,2]
[353729473,1739999438454,-500.0,0.00011898,2]
[353729475,1739999438463,-500.0,0.00011898,2]
[353729477,1739999438473,-500.0,0.00011898,2]
[353729479,1739999438483,-500.0,0.00011898,2]
[353729481,1739999438492,-500.0,0.00011898,2]
[353729483,1739999438501,-500.0,0.00011898,2]
[353729485,1739999438512,-500.0,0.00011898,2]
[353729487,1739999438521,-500.0,0.00011898,2]
[353729489,1739999438530,-500.0,0.00011898,2]
[353729491,1739999438540,-500.0,0.00011898,2]
[353729493,1739999438549,-500.0,0.00011898,2]
[353729495,1739999438559,-500.0,0.00011898,2]
[353729497,1739999438568,-508.03380309,0.00011898,2]
[353729498,1739999438577,-500.0,0.00011898,2]
[353729501,1739999438587,-500.0,0.00011898,2]
[353729502,1739999438596,-500.0,0.00011898,2]
[353729505,1739999438605,-500.0,0.00011898,2]
[353729507,1739999438615,-500.0,0.00011898,2]
[353729508,1739999438625,-507.15402754,0.00011898,2]
[353729510,1739999438635,-210.5014091,0.00011898,2]
[353729512,1739999438644,-500.0,0.00011898,2]
[353729514,1739999438653,-500.0,0.00011898,2]